Cogmind - Beta 10.2 @@@ ROGUE MODE // 2021.07.12 @ 18:31:54 Player: T-900 Result: Destroyed by Y-45 Defender with Beam Rifle Performance ------------- Evolutions (1) 500 Regions Visited (2) 400 Robots Destroyed (28) 140 Value Destroyed (658) 658 Prototype IDs (3) 60 Alien Tech Used (0) 0 Bonus (0) 0 TOTAL SCORE: 1758 Bonus ------- None Cogmind --------- Core Integrity 0/400 Matter 300/300 Energy 280/280 System Corruption 0% Temperature Cool (18) Movement Rolling (100) Ox2 Location -9/Materials Parts ------- > --- POWER (1) -------- Heavy Ion Engine > --- PROPULSION (4) --- Light Treads Aluminum Leg Wheel Wheel > --- UTILITY (2) ------ Large Storage Unit Large Storage Unit > --- WEAPON (2) ------- Light Assault Rifle > --- INVENTORY (16) --- Aluminum Leg Heat Sink Transmission Jammer Welding Torch Peak State ------------ > --- POWER ------------ Heavy Ion Engine > --- PROPULSION ------- Light Treads Aluminum Leg Aluminum Leg Aluminum Leg > --- UTILITY ---------- Large Storage Unit Large Storage Unit > --- WEAPON ----------- EM Pulse Cannon EM Pulse Cannon > --- INVENTORY -------- Ion Engine Light Treads Heat Sink Transmission Jammer Medium Laser Light EM Pulse Cannon Rocket Launcher [Rating: 16] Favorites ----------- Power Ion Engine Engine Ion Engine Propulsion Aluminum Leg Treads Light Treads Leg Aluminum Leg Wheel Wheel Utility Small Storage Unit Storage Small Storage Unit Protection Medium Armor Plating Weapon Light Assault Rifle Energy Gun Medium Laser Energy Cannon EM Pulse Cannon Ballistic Gun Light Assault Rifle Launcher Rocket Launcher Special Weapon Welding Torch Build | -11 -10 -9 ------- Run | Scr Mat Mat Slots Evolved 2 | . . 2 Power . | . . . Propulsion 2 | . . 2 Utility . | . . . Weapon . | . . . Parts Attached 35 | 5 7 23 Power 4 | 1 . 3 Engine 4 | 1 . 3 Core . | . . . Reactor . | . . . Propulsion 11 | 2 2 7 Treads 2 | . . 2 Leg 7 | 2 2 3 Wheel 2 | . . 2 Hover . | . . . Flight . | . . . Utility 5 | 1 2 2 Device . | . . . Storage 4 | 1 1 2 Processor . | . . . Hackware . | . . . Protection 1 | . 1 . Artifact . | . . . Weapon 15 | 1 3 11 Energy Gun 4 | . 2 2 Energy Cannon 6 | . . 6 Ballistic Gun 3 | 1 1 1 Ballistic Cannon . | . . . Launcher 1 | . . 1 Special Weapon 1 | . . 1 Impact Weapon . | . . . Slashing Weapon . | . . . Piercing Weapon . | . . . Special Melee Weapon . | . . . Unidentified Prototypes 1 | . . 1 Parts Lost 13 | . 1 12 Power 1 | . . 1 Propulsion 4 | . . 4 Utility 1 | . 1 . Weapon 7 | . . 7 Highest Loss Streak 9 | . 1 9 Average Slot Usage (%) 85 | . 87 83 Engine 11 | . 14 10 Treads 5 | . . 8 Leg 24 | . 27 22 Wheel 1 | . . 1 Storage 20 | . 16 22 Protection 3 | . 9 . Energy Gun 6 | . 5 7 Energy Cannon 1 | . . 1 Ballistic Gun 10 | . 13 8 Special Weapon 1 | . . 1 Naked Turns . | . . . Heaviest Build 43 | 10 17 43 Greatest Support 30 | 20 20 30 Greatest Overweight (x) 14 | 3 . 14 Average Overweight (x) . | . . 1 Largest Inventory Capacity 16 | 6 8 16 Average Capacity 9 | 5 6 12 Most Carried 9 | 5 7 9 Average Carried 6 | 3 5 6 Final Capacity 16 | 6 8 16 Final Carried 7 | 5 7 4 Class Distribution -------------------- 97% | Mutant Dominant Class ---------------- Mutant | -10/Materials Mutant | -9/Materials Resources | -11 -10 -9 ----------- Run | Scr Mat Mat Matter Collected 552 | 216 110 226 Remotely . | . . . Salvage Created 907 | . 323 584 Parts 54 | . 14 40 Haulers Intercepted . | . . . Recyclers Shooed . | . . . Parts Field Recycled . | . . . Retrieved Matter . | . . . Parts Self-Destructed . | . . . Prevented . | . . . Kills | -11 -10 -9 ------- Run | Scr Mat Mat Combat Hostiles Destroyed 24 | . 7 17 Guns 11 | . 7 4 Cannons 9 | . . 9 AOE 4 | . . 4 Classes Destroyed 8 | . 3 5 Worker 1 | . . 1 Builder 2 | . . 2 Recycler 1 | . 1 . Swarmer 10 | . 3 7 Grunt 9 | . 4 5 Brawler 2 | . . 2 Duelist 1 | . . 1 Sentry 2 | . . 2 Best Kill Streak 11 | . 5 11 Combat Bots Only 9 | . 4 9 Max Kills in Single Turn 3 | . 1 3 Gunslinging . | . . . Exploded 2 | . . 2 Melee . | . . . Uniques/NPCs Destroyed . | . . . Combat | -11 -10 -9 -------- Run | Scr Mat Mat Damage Taken 2055 | . 388 1667 Core 478 | . 76 402 Absorbed by Shields . | . . . Core Remaining (%) 84 | 100 69 . Volleys Fired 72 | . 37 35 Largest 2 | . 2 2 Hottest 126 | . 100 126 Shots Fired 107 | . 51 56 Gun 80 | . 51 29 Cannon 21 | . . 21 Launcher 2 | . . 2 Special 4 | . . 4 Kinetic 47 | . 31 16 Thermal 37 | . 20 17 Explosive 2 | . . 2 Electromagnetic 21 | . . 21 Robot Hit Streak 17 | . 10 17 Robot Miss Streak 4 | . 4 2 Penetration Max . | . . . Secondary Targets 2 | . 2 . Max Gunslinging Chain 1 | . 1 . Shots Hit Robots 78 | . 34 44 Core Hits 42 | . 16 26 Critical Hits . | . . . Critical Kills . | . . . Critical Parts Destroyed . | . . . Melee Attacks . | . . . Impact . | . . . Slashing . | . . . Piercing . | . . . Sneak Attacks . | . . . Combat Hostiles . | . . . Follow-up Attacks . | . . . Damage Inflicted 1521 | . 331 1190 Guns 570 | . 331 239 Cannons 376 | . . 376 Explosions 566 | . . 566 Melee . | . . . Ramming 2 | . . 2 Kinetic 267 | . 154 113 Thermal 494 | . 177 317 Explosive 382 | . . 382 Electromagnetic 376 | . . 376 Impact . | . . . Slashing . | . . . Piercing . | . . . Highest Corruption . | . . . Average Corruption . | . . . Corruption Purged . | . . . Overload Shots . | . . . Overflow Damage 24 | . . 24 Projectiles . | . . . Explosions 24 | . . 24 Melee . | . . . Knockbacks . | . . . Impact . | . . . Kinetic . | . . . Secondary . | . . . Self-Inflicted Damage 93 | . . 93 Shots 3 | . . 3 Rammed 1 | . . 1 Targets Rammed 1 | . . 1 Kicked . | . . . Crushed . | . . . Highest Temperature 409 | . 409 365 Average Temperature 187 | . 180 192 Received Heat Transfer 570 | . 141 429 Effects 8 | . 4 4 Shutdowns 3 | . 3 . Energy Bleed 1 | . 1 . Interference 3 | . . 3 Damage (minor) 1 | . . 1 Siege Activations . | . . . Robots Corrupted . | . . . Combat Hostiles . | . . . Parts Fried 1 | . . 1 Impact Corruptions . | . . . Robots Melted . | . . . Combat Hostiles . | . . . Parts Melted 1 | . 1 . Heat Transferred 1126 | . 518 608 Parts Sabotaged . | . . . Parts Stolen . | . . . Parts Stripped . | . . . Power Chain Reactions 1 | . . 1 Missiles Intercepted . | . . . Alert | -11 -10 -9 ------- Run | Scr Mat Mat Peak Influence 307 | . 225 307 Initial 94 | . . 94 Average 127 | . 89 162 Maximum Alert Level 1 | . 1 1 Low Security (%) 73 | 100 78 67 Level 1 26 | . 21 32 Level 2 . | . . . Level 3 . | . . . Level 4 . | . . . Level 5 . | . . . High Security . | . . . Max Security . | . . . Squads Dispatched 1 | . . 1 Investigation 1 | . . 1 Extermination . | . . . Reinforcement . | . . . Assault . | . . . Garrison . | . . . Intercept . | . . . Construction Impeded . | . . . Haulers Reinforced . | . . . Stealth | -11 -10 -9 --------- Run | Scr Mat Mat Distress Signals 1 | . 1 . Communications Jammed . | . . . Distress Signals . | . . . Times Spotted 33 | . 11 22 Peak Tracking Total 9 | . 6 9 Tactical Retreats 2 | . 1 1 Traps | -11 -10 -9 ------- Run | Scr Mat Mat Traps Triggered 1 | . . 1 Indirectly . | . . . Trap Hack Attempts . | . . . Triggered . | . . . Disarmed . | . . . Reprogrammed . | . . . Reused . | . . . Traps Extracted . | . . . Installed . | . . . Triggered . | . . . Machines | -11 -10 -9 ---------- Run | Scr Mat Mat Machines Disabled . | . . . Max in Single Turn . | . . . Machines Sabotaged . | . . . Garrisons Compromised . | . . . Overloaded Fab Kills . | . . . Fab Network Shutdowns . | . . . Hacking | -11 -10 -9 --------- Run | Scr Mat Mat Machines Accessed 5 | . 1 4 Terminals 3 | . . 3 Fabricators . | . . . Repair Stations 2 | . 1 1 Recycling Units . | . . . Scanalyzers . | . . . Garrison Access . | . . . Total Hacks 9 | . 4 5 Successful 7 | . 2 5 Failed 2 | . 2 . Catastrophic . | . . . Database Lockouts . | . . . Manual . | . . . Terminals 3 | . . 3 Fabricators . | . . . Repair Stations 6 | . 4 2 Recycling Units . | . . . Scanalyzers . | . . . Garrison Access . | . . . Terminal Hacks 3 | . . 3 Record 2 | . . 2 Prototype ID Bank 1 | . . 1 Fabricator Hacks . | . . . Repair Station Hacks 4 | . 2 2 Scan Component 2 | . 1 1 Repair 2 | . 1 1 Recycling Unit Hacks . | . . . Scanalyzer . | . . . Garrison Access Hacks . | . . . Unauthorized Hacks . | . . . Terminals . | . . . Fabricators . | . . . Repair Stations . | . . . Recycling Units . | . . . Scanalyzers . | . . . Garrison Access . | . . . Data Cores Recovered . | . . . Used . | . . . Hacking Detections 1 | . 1 . Full Trace Events . | . . . Feedback Events . | . . . Feedback Blocked . | . . . Robot Schematics Acquired . | . . . Robots Built . | . . . Matter . | . . . Time . | . . . Total Robot Build Rating . | . . . Part Schematics Acquired . | . . . Parts Built . | . . . Matter . | . . . Time . | . . . Total Part Build Rating . | . . . Parts Repaired 2 | . 1 1 Time 52 | . 26 26 Parts Recycled . | . . . Recycled Matter . | . . . Retrieved Matter . | . . . Retrieved Components . | . . . Parts Scanalyzed . | . . . Part Schematics Acquired . | . . . Parts Damaged . | . . . Bothacking | -11 -10 -9 ------------ Run | Scr Mat Mat Used RIF Installer . | . . . Robots Hacked . | . . . Non-combat . | . . . Combat . | . . . Robot Hacks Applied . | . . . Relay Couplers Released . | . . . Robots Rewired . | . . . Allies Hacked . | . . . Hacks Repelled . | . . . Allies | -11 -10 -9 -------- Run | Scr Mat Mat Total Allies . | . . . Largest Group . | . . . Highest-Rated Group . | . . . Highest-Rated Ally . | . . . Total Orders . | . . . Ally Attacks . | . . . Total Damage . | . . . Kills . | . . . Allies Corrupted . | . . . Allies Melted . | . . . Intel | -11 -10 -9 ------- Run | Scr Mat Mat Robot Analysis Total . | . . . Derelict Logs Recovered . | . . . Drone Launches . | . . . Drone Recoveries . | . . . Exploration | -11 -10 -9 ------------- Run | Scr Mat Mat Turns Passed 1118 | 73 378 667 Spaces Moved 505 | 48 202 255 Core 35 | 16 . 19 Treads . | . . . Legs 446 | 32 202 212 Wheels 24 | . . 24 Hover . | . . . Flight . | . . . Fastest Speed 50 | 50 120 100 Average Speed 141 | 121 120 162 Slowest Speed 750 | 200 120 750 Overloaded Moves . | . . . Propulsion Burnouts . | . . . Robots Hopped . | . . . Cave-ins Triggered . | . . . Exploration Rate (%) 27 | 5 48 29 Regions Visited 2 Branch Regions . Pre-discovered Areas . | . . . Known Exits Taken . | . . . Unknown Exits Taken 2 | 1 1 . Scrap Searched . | . . . Spaces Dug . | . . . Terrain Destroyed 28 | . . 28 Melee . | . . . Projectile . | . . . AOE 28 | . . 28 Terrain Rammed . | . . . Walls Destroyed . | . . . Machines Disabled . | . . . Actions | -11 -10 -9 --------- Run | Scr Mat Mat Total 803 | 62 292 449 Wait 156 | . 41 115 Move 503 | 47 201 255 Hop . | . . . Pick Up 30 | 10 5 15 Fast Attach 2 | . 1 1 Attach 22 | 5 3 14 Detach . | . . . Swap 11 | . 3 8 Drop 6 | . 1 5 Fire 72 | . 37 35 Melee . | . . . Ram 1 | . . 1 Kick . | . . . Crush . | . . . Escape Stasis . | . . . Rewire . | . . . Trap . | . . . Miscellaneous . | . . . Route ------- -11/Scrapyard -10/Materials (discovered 2 exits: *Mat / [*Min]) -9/Materials History --------- Turn | Location | Event 14 | -11/Scrapyard | Discovered new exit (range 16) 74 | -11/Scrapyard | Entered Materials 143 | -10/Materials | Discovered new exit (range 16) 305 | -10/Materials | Build established: Mutant 403 | -10/Materials | Discovered new exit (range 3) 437 | -10/Materials | Repaired Aluminum Leg 452 | -10/Materials | Entered another Materials area 452 | -9/Materials | Evolved 2 slots: Propulsion x2 528 | -9/Materials | Repaired Aluminum Leg 905 | -9/Materials | Destroyed 9 combat bots 941 | -9/Materials | Core integrity fell below 50% 957 | -9/Materials | Lost 9 parts (4n5w) 993 | -9/Materials | Core integrity fell below 20% 1119 | -9/Materials | Destroyed by Y-45 Defender with Beam Rifle Last Messages --------------- 00978_ U-05 Engineer builds a Wall. 00978_ U-05 Engineer lays Concrete. 00979_ U-05 Engineer builds a Wall. 00979_ K-01 Serf collects debris. 00980_ U-05 Engineer lays Concrete. 00983_ U-05 Engineer builds a Wall. 01006_ Acquired Welding Torch. 01019_ G-34 Mercenary destroyed. 01020_ Acquired 34 matter. 01042_ K-01 Serf collects debris. 01043_ Acquired Wheel. 01045_ K-01 Serf collects debris. 01065_ Acquired Wheel. 01070_ Acquired Aluminum Leg. 01077_ Acquired Sml. Laser. 01082_ R-06 Scavenger collects Lgt. Assault Rifle. 01090_ Acquired 33 matter. 01113_ Sml. Laser destroyed. 01116_ Y-45 Defender destroyed. 01118_ Acquired 20 matter. Map ----- +----------------------------------------------------+ | ???????## ##????????###### #?????????????? | | ????????# #??????????????# ##????????????? | | ????????# #?????????###### #????????????? | | ????????# #???????" + #????????????? | | ????????# #?????????####### #????????????? | | ???????? #???????????????# ##????????????? | | ??????? /???????????????# #?????????????? | | ?????? #???????????????# #?????????????? | | ?????? ### ##???????????????# #?????????????? | | ????? #??# ?????????????????# #?????????????? | | ???? ???#+?????????????????# #?????????????? | | ???? ??????????????########## #?????????????? | | ???? ??????????????# #?????????????? | | ???????????????????# #?????????????? | | ???????????????????# #?????????????? | | ???????????????????# ######### #?????????????? | | ?????????????????????######### ##?????#??????? | | ?????????????????????# % !#%% ### #??????? | | ?????????????????????# %%+% ?? | | ?????????????????????# !#% ### #??????? | | ?????????????????????#########+### #????##??????? | | ???????????????????????## # *%%# #????????????? | | ????????????????????????### *!Y/ #????????????? | | ?????????????????# ???????# a # #????????????? | | ?????????????????#a ####! # #????????????? | | ??????????#!! ! @/* # #????????????? | | ?????????????????# ####= Y # #????????????? | | ?????????????????# ???????####+### #????????????? | | ?????????????????????????????????+ ????????????? | | ?????????????????????????????????# ????????????? | | ?????????????????????????????????? ????????????? | | ?????????????????????????????????? ????????????? | | ?????????????????????????????????? ###???????????? | | ?????????????????????????????????? ??????????????? | | ?????????????????????????????????? ??????????????? | | ?????????????????????????????????? ??????????????? | | ?????????????????????????????????? ??????????????? | | ?????????????????????????????????????????????????? | | ?????????????????????????????????????????????????? | | ?????????????????????????????????????????????????? | | ?????????????????????????????????????????????????? | | ?????????????????????????????????????????????????? | | ?????????????????????????????????????????????????? | | ?????????????????????????????????????????????????? | | ?????????????????????????????????????????????????? | | ?????????????????????????????????????????????????? | | ?????????????????????????????????????????????????? | | ?????????????????????????????????????????????????? | | ?????????????????????????????????????????????????? | | ?????????????????????????????????????????????????? | +----------------------------------------------------+ Best States ------------- Heat Dissipation 28 Energy Generation 14 Energy Capacity 280 Matter Stores 300 Matter Capacity 300 Sight Range 16 Terrain Scan Density 10 Armor Coverage 225 Evasion (%) 40 Item Schematics ----------------- None Robot Schematics ------------------ None Fabricated ------------ Nothing Alien Tech Used ----------------- None Achievements -------------- None Challenges ------------ None Game ------ Seed LegDynamicJammer Manual? 0 Play Time 00:21:44 Cumulative 19.4 hours Start 2021.07.12 @ 18:12:03 End 2021.07.12 @ 18:31:54 Sessions 1 Manual Loads 0 Difficulty Rogue Special Mode None Game No. 65 Rogue 65 Adventurer 0 Explorer 0 Win Type - Total 0 Types 0/0/0/0/0/0/0/0/0 Lore% 9 Gallery% 25 Achievement% 18 Wizard Run 0 Options --------- ASCII 0 Keyboard 0 Movement Mouse Keybinds 0 Fullscreen 1 Font 18/SmallcapsGlow Map View 76x50 Tactical HUD 1 Map Filters NONE Filters NONE Steam 1 RUN: afaef81e-d866-4727-ae22-38da50bcb754